fUST/lending_fUST_20250729
["ID","MTS","AMOUNT","RATE_DAILY","PERIOD"]
[375923549,1753786248792,-460.0,0.00019452,2]
[375923551,1753786248802,-500.0,0.00019473,2]
[375923553,1753786248812,-504.30457904,0.00019473,2]
[375923555,1753786248821,-500.89800558,0.00019473,2]
[375923557,1753786248831,-501.27535184,0.00019473,2]
[375923559,1753786248842,-500.0,0.00019473,2]
[375923561,1753786248852,-500.0,0.00019473,2]
[375923563,1753786248861,-500.0,0.00019473,2]
[375923565,1753786248871,-500.0,0.00019473,2]
[375923567,1753786248882,-500.0,0.00019473,2]
[375923568,1753786248892,-500.0,0.00019473,2]
[375923570,1753786248902,-500.0,0.00019473,2]
[375923572,1753786248911,-503.26606253,0.00019473,2]
[375923574,1753786248920,-500.60185691,0.00019473,2]
[375923576,1753786248931,-501.64123158,0.00019473,2]
[375923578,1753786248941,-500.0,0.00019473,2]
[375923580,1753786248952,-500.0,0.00019473,2]
[375923582,1753786248964,-500.0,0.00019473,2]
[375923584,1753786248974,-500.0,0.00019473,2]
[375923586,1753786248984,-151.0,0.000195,2]
[375923588,1753786248994,-151.0,0.000195,2]
[375923590,1753786249004,-500.0,0.00019515,2]
[375923592,1753786249014,-312.16666667,0.00019586,2]
[375923594,1753786249024,-160.0,0.00019586,2]
[375923596,1753786249034,-160.0,0.00019586,2]
[375923598,1753786249044,-841.06558547,0.00019586,2]
[375923600,1753786249053,-160.0,0.00019586,2]
[375923602,1753786249063,-160.0,0.00019586,2]
[375923604,1753786249074,-160.0,0.00019586,2]
[375923606,1753786249084,-216.1031716,0.00019586,2]
[375923608,1753786249094,-12637.12721421,0.00019586,2]
[375923610,1753786249104,-160.0,0.00019586,2]
[375923612,1753786249113,-526.67226028,0.00019586,2]
[375923614,1753786249123,-231.39372452,0.00019586,2]
[375923616,1753786249132,-160.0,0.00019586,2]
[375923618,1753786249142,-160.0,0.00019586,2]
[375923620,1753786249152,-160.0,0.00019586,2]
[375923622,1753786249162,-460.5085953,0.00019589,2]
[375923624,1753786249172,-214.91980558,0.00019589,2]
[375923626,1753786249182,-615.2821362,0.0001959,2]
[375923628,1753786249191,-160.0,0.00019593,2]
[375923630,1753786249201,-151.0,0.000196,2]
[375923632,1753786249211,-151.0,0.000196,2]
[375923634,1753786249221,-151.0,0.000197,2]
[375923636,1753786249231,-151.0,0.000197,2]
[375923638,1753786249240,-151.0,0.000197,2]
[375923640,1753786249250,-503.84649585,0.00019721,2]
[375923642,1753786249260,-1062.55105986,0.00019721,2]
[375923644,1753786249270,-1000.0,0.00019721,2]
[375923646,1753786249280,-1000.0,0.00019721,2]
[375923648,1753786249289,-910.92394306,0.00019721,2]
[375923650,1753786249299,-1000.0,0.00019721,2]
[375923652,1753786249308,-460.017518,0.00019726,2]
[375923653,1753786249318,-151.0,0.00019726,2]
[375923655,1753786249327,-460.0,0.00019726,2]
[375923657,1753786249337,-442.67509529,0.00019726,2]
[375923659,1753786249347,-460.0,0.00019726,2]
[375923661,1753786249358,-460.0,0.00019726,2]
[375923663,1753786249368,-460.0,0.00019726,2]
[375923665,1753786249378,-460.0,0.00019726,2]
[375923667,1753786249389,-460.0,0.00019726,2]
[375923669,1753786249398,-460.0,0.00019726,2]
[375923671,1753786249408,-460.0,0.00019726,2]
[375923673,1753786249418,-460.0,0.00019726,2]
[375923675,1753786249427,-460.0,0.00019726,2]
[375923677,1753786249437,-460.0,0.00019726,2]
[375923679,1753786249447,-460.0,0.00019726,2]
[375923681,1753786249456,-460.0,0.00019726,2]
[375923683,1753786249466,-460.0,0.00019726,2]
[375923685,1753786249478,-460.0,0.00019726,2]
[375923687,1753786249488,-460.0,0.00019726,2]
[375923689,1753786249498,-460.0,0.00019726,2]
[375923691,1753786249508,-460.0,0.00019726,2]
[375923693,1753786249518,-538.14323005,0.00019726,2]
[375923695,1753786249528,-460.0,0.00019726,2]
[375923697,1753786249539,-460.0,0.00019726,2]
[375923699,1753786249549,-460.0,0.00019726,2]
[375923701,1753786249558,-461.56912124,0.00019726,2]
[375923703,1753786249568,-462.49643376,0.00019726,2]
[375923705,1753786249579,-460.0,0.00019726,2]
[375923707,1753786249588,-460.0,0.00019726,2]
[375923709,1753786249598,-460.0,0.00019726,2]
[375923711,1753786249608,-460.0,0.00019726,2]
[375923713,1753786249618,-460.0,0.00019726,2]
[375923715,1753786249628,-460.0,0.00019726,2]
[375923730,1753786249770,-468.37574013,0.00019726,2]
[375923731,1753786249780,-427.23070043,0.00019726,2]
[375923733,1753786249791,-460.0,0.00019726,2]
[375923735,1753786249801,-460.0,0.00019726,2]
[375923737,1753786249811,-460.0,0.00019726,2]
[375923739,1753786249820,-353.12023048,0.00019726,2]
[375923741,1753786249830,-460.0,0.00019726,2]
[375923743,1753786249839,-460.0,0.00019726,2]
[375923745,1753786249850,-460.0,0.00019726,2]
[375923747,1753786249862,-460.0,0.00019726,2]
[375923749,1753786249871,-461.97509524,0.00019726,2]
[375923751,1753786249881,-509.26497289,0.00019726,2]
[375923753,1753786249890,-460.0,0.00019726,2]
[375923755,1753786249900,-460.0,0.00019726,2]
[375923757,1753786249909,-466.43424962,0.00019726,2]
[375923759,1753786249919,-558.73,0.00019726,2]
[375923760,1753786249928,-460.0,0.00019726,2]
[375923762,1753786249937,-460.0,0.00019726,2]
[375923764,1753786249947,-460.0,0.00019726,2]
[375923766,1753786249956,-460.0,0.00019726,2]
[375923768,1753786249965,-460.0,0.00019726,2]
[375923770,1753786249975,-151.0,0.00019726,2]
[375923772,1753786249985,-460.0,0.00019726,2]
[375923774,1753786249994,-151.0,0.00019726,2]
[375923776,1753786250004,-493.57067686,0.00019726,2]
[375923778,1753786250014,-460.0,0.00019726,2]
[375923780,1753786250023,-460.0,0.00019726,2]
[375923782,1753786250032,-460.0,0.00019726,2]
[375923784,1753786250042,-641.17,0.00019726,2]
[375923786,1753786250051,-465.77462688,0.00019726,2]
[375923788,1753786250060,-460.0,0.00019726,2]
[375923790,1753786250069,-460.0,0.00019726,2]
[375923792,1753786250079,-460.0,0.00019726,2]
[375923793,1753786250087,-349.36129447,0.00019726,2]
[375923795,1753786250096,-460.0,0.00019726,2]
[375923797,1753786250108,-460.0,0.00019726,2]
[375923800,1753786250117,-463.51674081,0.00019726,2]
[375923801,1753786250127,-151.0,0.00019726,2]
[375923803,1753786250136,-564.54,0.00019726,2]
[375923805,1753786250146,-151.0,0.00019726,2]
[375923807,1753786250155,-460.0,0.00019726,2]
[375923808,1753786250164,-460.0,0.00019726,2]
[375923810,1753786250173,-151.0,0.00019726,2]
[375923812,1753786250182,-151.797321,0.00019726,2]
[375923814,1753786250191,-460.0,0.00019726,2]
[375923816,1753786250201,-460.0,0.00019726,2]
[375923818,1753786250210,-460.0,0.00019726,2]
[375923820,1753786250220,-460.0,0.00019726,2]
[375923822,1753786250229,-460.0,0.00019726,2]
[375923824,1753786250238,-460.0,0.00019726,2]
[375923826,1753786250248,-460.0,0.00019726,2]
[375923828,1753786250257,-460.0,0.00019726,2]
[375923830,1753786250267,-460.0,0.00019726,2]
[375923832,1753786250276,-460.0,0.00019726,2]
[375923834,1753786250285,-460.0,0.00019726,2]
[375923836,1753786250294,-460.0,0.00019726,2]
[375923838,1753786250304,-460.0,0.00019726,2]
[375923840,1753786250313,-460.0,0.00019726,2]
[375923841,1753786250323,-460.0,0.00019726,2]
[375923842,1753786250332,-3330.66,0.00019726,2]
[375923844,1753786250341,-460.0,0.00019726,2]
[375923845,1753786250350,-460.0,0.00019726,2]
[375923847,1753786250360,-481.04634767,0.00019726,2]
[375923849,1753786250370,-460.0,0.00019726,2]
[375923850,1753786250380,-460.0,0.00019726,2]
[375923851,1753786250390,-460.0,0.00019726,2]
[375923852,1753786250400,-460.0,0.00019726,2]
[375923853,1753786250409,-889.55,0.00019726,2]
[375923854,1753786250418,-1469.59,0.00019726,2]
[375923855,1753786250427,-460.0,0.00019726,2]
[375923856,1753786250436,-227.23069924,0.00019726,2]
[375923857,1753786250445,-623.86,0.00019726,2]
[375923858,1753786250455,-631.4,0.00019726,2]
[375923859,1753786250464,-460.0,0.00019726,2]
[375923860,1753786250475,-462.31238432,0.00019726,2]
[375923861,1753786250485,-460.0,0.00019726,2]
[375923862,1753786250494,-460.0,0.00019726,2]
[375923863,1753786250503,-460.0,0.00019726,2]
[375923864,1753786250513,-460.0,0.00019726,2]
[375923865,1753786250522,-460.0,0.00019726,2]
[375923866,1753786250532,-460.0,0.00019726,2]
[375923867,1753786250541,-460.0,0.00019726,2]
[375923868,1753786250552,-460.0,0.00019726,2]
[375923869,1753786250562,-460.0,0.00019726,2]
[375923870,1753786250571,-460.0,0.00019726,2]
[375923871,1753786250581,-4205.18,0.00019726,2]
[375923872,1753786250590,-151.0,0.00019726,2]
[375923873,1753786250599,-460.0,0.00019726,2]
[375923874,1753786250609,-460.0,0.00019726,2]
[375923875,1753786250618,-460.0,0.00019726,2]
[375923876,1753786250628,-545.41,0.00019726,2]
[375923877,1753786250638,-1655.39,0.00019726,2]
[375923878,1753786250656,-460.0,0.00019726,2]
[375923879,1753786250669,-460.0,0.00019726,2]
[375923880,1753786250678,-460.0,0.00019726,2]
[375923881,1753786250688,-460.0,0.00019726,2]
[375923882,1753786250697,-460.0,0.00019726,2]
[375923883,1753786250706,-460.0,0.00019726,2]
[375923884,1753786250717,-460.0,0.00019726,2]
[375923885,1753786250726,-460.0,0.00019726,2]
[375923886,1753786250735,-460.0,0.00019726,2]
[375923887,1753786250745,-683.88,0.00019726,2]
[375923888,1753786250755,-460.0,0.00019726,2]
[375923889,1753786250765,-460.0,0.00019726,2]
[375923890,1753786250775,-790.94,0.00019726,2]
[375923891,1753786250784,-460.0,0.00019726,2]
[375923892,1753786250794,-460.0,0.00019726,2]
[375923893,1753786250804,-460.0,0.00019726,2]
[375923894,1753786250813,-460.0,0.00019726,2]
[375923895,1753786250823,-460.0,0.00019726,2]
[375923896,1753786250832,-539.65,0.00019726,2]
[375923897,1753786250842,-460.0,0.00019726,2]
[375923898,1753786250851,-916.43,0.00019726,2]
[375923899,1753786250861,-460.0,0.00019726,2]
[375923900,1753786250872,-460.0,0.00019726,2]
[375923901,1753786250881,-460.0,0.00019726,2]
[375923902,1753786250891,-460.0,0.00019726,2]
[375923903,1753786250900,-658.24,0.00019726,2]
[375923904,1753786250909,-460.0,0.00019726,2]
[375923905,1753786250919,-460.0,0.00019726,2]
[375923906,1753786250928,-460.0,0.00019726,2]
[375923907,1753786250938,-772.21,0.00019726,2]
[375923909,1753786250947,-460.0,0.00019726,2]
[375923911,1753786250956,-460.0,0.00019726,2]
[375923912,1753786250966,-460.0,0.00019726,2]
[375923913,1753786250975,-460.0,0.00019726,2]
[375923914,1753786250985,-463.54,0.00019726,2]
[375923916,1753786250995,-460.0,0.00019726,2]
[375923917,1753786251005,-460.0,0.00019726,2]
[375923919,1753786251015,-460.0,0.00019726,2]
[375923921,1753786251024,-460.0,0.00019726,2]
[375923923,1753786251033,-460.0,0.00019726,2]
[375923925,1753786251043,-5310.21,0.00019726,2]
[375923926,1753786251052,-460.0,0.00019726,2]
[375923927,1753786251062,-460.0,0.00019726,2]
[375923928,1753786251072,-460.0,0.00019726,2]
[375923930,1753786251082,-525.50719325,0.00019726,2]
[375923931,1753786251091,-543.44,0.00019726,2]
[375923932,1753786251100,-460.0,0.00019726,2]
[375923933,1753786251111,-886.02,0.00019726,2]
[375923934,1753786251121,-460.0,0.00019726,2]
[375923935,1753786251130,-460.0,0.00019726,2]
[375923936,1753786251139,-460.0,0.00019726,2]
[375923937,1753786251147,-460.0,0.00019726,2]
[375923938,1753786251157,-1215.12,0.00019726,2]
[375923939,1753786251166,-460.0,0.00019726,2]
[375923940,1753786251175,-1847.32,0.00019726,2]
[375923941,1753786251184,-460.0,0.00019726,2]
[375923942,1753786251194,-872.66,0.00019726,2]
[375923943,1753786251203,-460.0,0.00019726,2]
[375923944,1753786251213,-460.0,0.00019726,2]
[375923945,1753786251222,-824.86,0.00019726,2]
[375923946,1753786251231,-1143.82,0.00019726,2]
[375923947,1753786251240,-460.0,0.00019726,2]
[375923948,1753786251249,-460.0,0.00019726,2]
[375923949,1753786251259,-460.0,0.00019726,2]
[375923950,1753786251267,-460.0,0.00019726,2]
[375923951,1753786251277,-460.0,0.00019726,2]
[375923952,1753786251287,-460.0,0.00019726,2]
[375923953,1753786251296,-489.82,0.00019726,2]
[375923954,1753786251305,-618.05,0.00019726,2]
[375923955,1753786251315,-1322.92,0.00019726,2]
[375923956,1753786251324,-460.0,0.00019726,2]
[375923957,1753786251334,-528.87262482,0.00019726,2]
[375923958,1753786251343,-460.0,0.00019726,2]
[375923959,1753786251353,-616.15,0.00019726,2]
[375923960,1753786251362,-695.65,0.00019726,2]
[375923961,1753786251371,-590.32,0.00019726,2]
[375923962,1753786251380,-460.0,0.00019726,2]
[375923963,1753786251389,-460.0,0.00019726,2]
[375923964,1753786251399,-460.0,0.00019726,2]
[375923965,1753786251408,-6923.83,0.00019726,2]
[375923966,1753786251417,-460.0,0.00019726,2]
[375923967,1753786251426,-460.0,0.00019726,2]
[375923968,1753786251436,-460.0,0.00019726,2]
[375923969,1753786251445,-460.0,0.00019726,2]
[375923970,1753786251454,-217.64509785,0.00019726,2]
[375923971,1753786251463,-460.0,0.00019726,2]
[375923972,1753786251472,-460.0,0.00019726,2]
[375923973,1753786251485,-460.0,0.00019726,2]
[375923974,1753786251494,-460.0,0.00019726,2]
[375923975,1753786251503,-4807.24,0.00019726,2]
[375923976,1753786251512,-460.0,0.00019726,2]
[375923977,1753786251522,-1054.57,0.00019726,2]
[375923978,1753786251532,-460.0,0.00019726,2]
[375923979,1753786251541,-261.72744388,0.00019726,2]
[375923980,1753786251551,-1367.47,0.00019726,2]
[375923981,1753786251562,-460.0,0.00019726,2]
[375923982,1753786251571,-460.0,0.00019726,2]
[375923983,1753786251582,-460.0,0.00019726,2]
[375923984,1753786251593,-460.0,0.00019726,2]
[375923985,1753786251603,-1127.35,0.00019726,2]
[375923986,1753786251613,-460.0,0.00019726,2]
[375923987,1753786251622,-967.65,0.00019726,2]
[375923988,1753786251631,-1757.04,0.00019726,2]
[375923989,1753786251641,-1087.46,0.00019726,2]
[375923990,1753786251650,-882.88,0.00019726,2]
[375923991,1753786251660,-460.0,0.00019726,2]
[375923992,1753786251669,-1097.94,0.00019726,2]
[375923993,1753786251679,-460.0,0.00019726,2]
[375923994,1753786251688,-460.0,0.00019726,2]
[375923995,1753786251698,-460.0,0.00019726,2]
[375923996,1753786251707,-460.0,0.00019726,2]
[375923997,1753786251716,-460.0,0.00019726,2]
[375923998,1753786251725,-460.0,0.00019726,2]
[375923999,1753786251734,-460.0,0.00019726,2]
[375924000,1753786251743,-4403.09,0.00019726,2]
[375924001,1753786251753,-460.0,0.00019726,2]
[375924002,1753786251762,-460.0,0.00019726,2]
[375924003,1753786251771,-1259.84,0.00019726,2]
[375924004,1753786251780,-460.0,0.00019726,2]
[375924005,1753786251789,-460.0,0.00019726,2]
[375924006,1753786251798,-3860.25,0.00019726,2]
[375924007,1753786251807,-3629.56,0.00019726,2]
[375924008,1753786251817,-460.0,0.00019726,2]
[375924009,1753786251826,-460.0,0.00019726,2]
[375924010,1753786251835,-2172.77,0.00019726,2]
[375924011,1753786251844,-5778.25,0.00019726,2]
[375924012,1753786251854,-154.66497834,0.00019726,2]
[375924013,1753786251863,-460.0,0.00019726,2]
[375924014,1753786251873,-460.0,0.00019726,2]
[375924015,1753786251882,-13244.83,0.00019726,2]
[375924016,1753786251891,-4434.88,0.00019726,2]
[375924017,1753786251901,-460.0,0.00019726,2]
[375924018,1753786251910,-460.0,0.00019726,2]
[375924019,1753786251920,-460.0,0.00019726,2]
[375924020,1753786251929,-460.0,0.00019726,2]
[375924021,1753786251939,-460.0,0.00019726,2]
[375924022,1753786251949,-460.0,0.00019726,2]
[375924023,1753786251958,-463.64719582,0.00019726,2]
[375924024,1753786251967,-460.0,0.00019726,2]
[375924025,1753786251976,-460.0,0.00019726,2]
[375924026,1753786251985,-460.0,0.00019726,2]
[375924027,1753786251995,-460.0,0.00019726,2]
[375924028,1753786252004,-460.0,0.00019726,2]
[375924029,1753786252014,-764.02,0.00019726,2]
[375924030,1753786252024,-460.0,0.00019726,2]
[375924031,1753786252033,-460.0,0.00019726,2]
[375924032,1753786252043,-460.0,0.00019726,2]
[375924033,1753786252052,-519.68,0.00019726,2]
[375924034,1753786252062,-460.0,0.00019726,2]
[375924035,1753786252071,-579.38,0.00019726,2]
[375924036,1753786252081,-1554.77,0.00019726,2]
[375924037,1753786252090,-263.21469156,0.00019726,2]
[375924038,1753786252099,-460.0,0.00019726,2]
[375924039,1753786252109,-460.0,0.00019726,2]
[375924040,1753786252118,-460.0,0.00019726,2]
[375924041,1753786252127,-532.21,0.00019726,2]
[375924042,1753786252137,-460.0,0.00019726,2]
[375924043,1753786252146,-1516.66,0.00019726,2]
[375924044,1753786252155,-460.0,0.00019726,2]
[375924045,1753786252164,-460.0,0.00019726,2]
[375924046,1753786252173,-486.80050922,0.00019726,2]
[375924047,1753786252183,-582.69,0.00019726,2]
[375924048,1753786252192,-460.0,0.00019726,2]
[375924049,1753786252201,-460.0,0.00019726,2]
[375924050,1753786252211,-460.0,0.00019726,2]
[375924051,1753786252221,-4089.71,0.00019726,2]
[375924052,1753786252230,-460.0,0.00019726,2]
[375924053,1753786252239,-1608.13,0.00019726,2]
[375924054,1753786252249,-460.0,0.00019726,2]
[375924055,1753786252258,-460.0,0.00019726,2]
[375924056,1753786252268,-460.0,0.00019726,2]
[375924057,1753786252277,-2885.28,0.00019726,2]
[375924058,1753786252287,-460.0,0.00019726,2]
[375924059,1753786252296,-1019.55,0.00019726,2]
[375924060,1753786252306,-460.0,0.00019726,2]
[375924061,1753786252315,-460.0,0.00019726,2]
[375924062,1753786252324,-460.0,0.00019726,2]
[375924063,1753786252334,-460.0,0.00019726,2]
[375924064,1753786252343,-561.07683473,0.00019726,2]
[375924065,1753786252353,-460.0,0.00019726,2]
[375924066,1753786252363,-334.95322715,0.00019726,2]
[375924067,1753786252372,-1459.12,0.00019726,2]
[375924068,1753786252381,-4196.7,0.00019726,2]
[375924069,1753786252390,-1265.05,0.00019726,2]
[375924070,1753786252400,-794.22,0.00019726,2]
[375924071,1753786252409,-11712.56,0.00019726,2]
[375924072,1753786252418,-460.0,0.00019726,2]
[375924073,1753786252428,-460.0,0.00019726,2]
[375924074,1753786252437,-487.56,0.00019726,2]
[375924075,1753786252447,-460.0,0.00019726,2]
[375924076,1753786252457,-460.0,0.00019726,2]
[375924077,1753786252466,-784.83,0.00019726,2]
[375924078,1753786252479,-725.41,0.00019726,2]
[375924079,1753786252489,-460.0,0.00019726,2]
[375924080,1753786252499,-460.0,0.00019726,2]
[375924081,1753786252508,-460.0,0.00019726,2]
[375924082,1753786252518,-460.0,0.00019726,2]
[375924083,1753786252527,-1482.43,0.00019726,2]
[375924084,1753786252537,-460.0,0.00019726,2]
[375924085,1753786252546,-460.0,0.00019726,2]
[375924086,1753786252557,-926.26,0.00019726,2]
[375924087,1753786252567,-460.0,0.00019726,2]
[375924088,1753786252577,-612.57,0.00019726,2]
[375924089,1753786252586,-460.0,0.00019726,2]
[375924090,1753786252596,-460.0,0.00019726,2]
[375924091,1753786252606,-460.0,0.00019726,2]
[375924092,1753786252616,-460.0,0.00019726,2]
[375924093,1753786252626,-1508.23,0.00019726,2]
[375924094,1753786252635,-460.0,0.00019726,2]
[375924095,1753786252645,-1388.48,0.00019726,2]
[375924096,1753786252654,-460.0,0.00019726,2]
[375924097,1753786252663,-460.0,0.00019726,2]
[375924098,1753786252673,-289.18149332,0.00019726,2]
[375924099,1753786252682,-460.0,0.00019726,2]
[375924100,1753786252692,-460.0,0.00019726,2]
[375924101,1753786252702,-460.0,0.00019726,2]
[375924102,1753786252712,-848.07,0.00019726,2]
[375924103,1753786252721,-1491.79,0.00019726,2]
[375924104,1753786252731,-460.0,0.00019726,2]
[375924105,1753786252740,-460.0,0.00019726,2]
[375924106,1753786252750,-615.2821362,0.00019728,2]
[375924107,1753786252891,-5955.94506061,0.00019763,2]
[375924108,1753786252901,-12914.44775265,0.00019763,2]
[375924109,1753786252911,-501.0164409,0.00019773,2]
[375924110,1753786252921,-500.0,0.00019773,2]
[375924111,1753786252930,-501.56468622,0.00019773,2]
[375924112,1753786252940,-500.66718957,0.00019773,2]
[375924113,1753786252949,-500.0,0.00019773,2]
[375924114,1753786252959,-500.0,0.00019773,2]
[375924115,1753786252968,-500.0,0.00019773,2]
[375924116,1753786252977,-202.05515532,0.00019773,2]
[375924117,1753786252987,-500.0,0.00019773,2]
[375924118,1753786252996,-500.0,0.00019773,2]
[375924119,1753786253005,-500.0,0.00019788,2]
[375924120,1753786253015,-151.0,0.000198,2]
[375924121,1753786253025,-615.2821362,0.00019866,2]
[375924122,1753786253035,-151.0,0.000199,2]
[375924123,1753786253045,-1325.28887741,0.00019904,2]
[375924124,1753786253055,-3217.90130766,0.00019999,2]
[375924125,1753786253065,-3217.90130766,0.00019999,2]
[375924126,1753786253075,-500.0,0.00019999,2]
[375924127,1753786253084,-3217.90130766,0.00019999,2]
[375924128,1753786253093,-3217.90130766,0.00019999,2]
[375924129,1753786253104,-470.52777879,0.00019999,2]
[375924130,1753786253114,-3217.90130766,0.00019999,2]
[375924131,1753786253123,-3217.90130766,0.00019999,2]
[375924132,1753786253132,-3217.90130766,0.00019999,2]
[375924133,1753786253142,-3217.90130766,0.00019999,2]
[375924134,1753786253151,-3217.90130766,0.00019999,2]
[375924135,1753786253160,-500.0,0.00019999,2]
[375924136,1753786253170,-3217.90130766,0.00019999,2]
[375924137,1753786253179,-3217.90130766,0.00019999,2]
[375924138,1753786253189,-3217.90130766,0.00019999,2]
[375924139,1753786253198,-3217.90130766,0.00019999,2]
[375924140,1753786253207,-3217.90130766,0.00019999,2]
[375924141,1753786253216,-3217.90130766,0.00019999,2]
[375924142,1753786253226,-3217.90130766,0.00019999,2]
[375924143,1753786253236,-3217.90130766,0.00019999,2]
[375924144,1753786253245,-3217.90130766,0.00019999,2]
[375924145,1753786253254,-3217.90130766,0.00019999,2]
[375924146,1753786253263,-3217.90130766,0.00019999,2]
[375924147,1753786253272,-3217.90130766,0.00019999,2]
[375924148,1753786253282,-3217.90130766,0.00019999,2]
[375924149,1753786253291,-3700.5865038,0.00019999,2]
[375924150,1753786253300,-3700.5865038,0.00019999,2]
[375924151,1753786253310,-3700.5865038,0.00019999,2]
[375924152,1753786253320,-3700.5865038,0.00019999,2]
[375924153,1753786253329,-3700.5865038,0.00019999,2]
[375924154,1753786253339,-3700.5865038,0.00019999,2]
[375924155,1753786253348,-202.031419,0.0002,2]
[375924156,1753786253357,-460.017518,0.0002,2]
[375924157,1753786253368,-151.0,0.0002,2]
[375924158,1753786253378,-460.0,0.0002,2]
[375924159,1753786253387,-460.0,0.0002,2]
[375924160,1753786253396,-460.0,0.0002,2]
[375924161,1753786253406,-460.0,0.0002,2]
[375924162,1753786253416,-460.0,0.0002,2]
[375924163,1753786253425,-460.0,0.0002,2]
[375924164,1753786253435,-460.0,0.0002,2]
[375924165,1753786253444,-460.0,0.0002,2]
[375924166,1753786253453,-460.0,0.0002,2]
[375924167,1753786253463,-460.0,0.0002,2]
[375924168,1753786253472,-463.13885218,0.0002,2]
[375924169,1753786253485,-460.0,0.0002,2]
[375924170,1753786253495,-460.0,0.0002,2]
[375924171,1753786253504,-460.0,0.0002,2]
[375924172,1753786253514,-263.39174268,0.0002,2]
[375924173,1753786253526,-460.0,0.0002,2]
[375924174,1753786253535,-460.0,0.0002,2]
[375924175,1753786253545,-311.12388248,0.0002,2]
[375924176,1753786253555,-460.0,0.0002,2]
[375924177,1753786253565,-460.0,0.0002,2]
[375924178,1753786253575,-460.0,0.0002,2]
[375924179,1753786253585,-460.0,0.0002,2]
[375924180,1753786253595,-460.0,0.0002,2]
[375924181,1753786253604,-460.0,0.0002,2]
[375924182,1753786253615,-460.0,0.0002,2]
[375924183,1753786253624,-460.0,0.0002,2]
[375924184,1753786253634,-460.0,0.0002,2]
[375924185,1753786253643,-151.0,0.0002,2]
[375924186,1753786253653,-460.0,0.0002,2]
[375924187,1753786253662,-460.0,0.0002,2]
[375924188,1753786253671,-465.07307364,0.0002,2]
[375924189,1753786253681,-460.0,0.0002,2]
[375924190,1753786253690,-460.0,0.0002,2]
[375924191,1753786253700,-460.0,0.0002,2]
[375924192,1753786253710,-460.0,0.0002,2]
[375924193,1753786253719,-558.73,0.0002,2]
[375924194,1753786253729,-151.0,0.0002,2]
[375924195,1753786253738,-163.35391302,0.0002,2]
[375924196,1753786253748,-289.4233495,0.0002,2]
[375924197,1753786253757,-151.0,0.0002,2]
[375924198,1753786253766,-432.54197,0.0002,2]
[375924199,1753786253776,-211.13035058,0.0002,2]
[375924200,1753786253786,-432.54197,0.0002,2]
[375924201,1753786253795,-460.0,0.0002,2]
[375924202,1753786253805,-460.0,0.0002,2]
[375924203,1753786253814,-151.0,0.0002,2]
[375924204,1753786253824,-460.0,0.0002,2]
[375924205,1753786253834,-460.0,0.0002,2]
[375924206,1753786253843,-460.0,0.0002,2]
[375924207,1753786253854,-460.0,0.0002,2]
[375924208,1753786253863,-460.0,0.0002,2]